Workbook

Sheet Feuil3
B1: PANEL STUDY
X2: PONDERATION PANIE | Z2: EUR | AA2: 0.6
Z3: USD | AA3: 0.4
C4: DATE | D4: CROSS | E4: AV | G4: MID RATE | H4: TCE | I4: % CHANGE | J4: % TCE | K4: % TCE CUMM
E5: BID | F5: ASK
B6: COURS DE REF | C6: 2017-04-03 | D6: USD | E6: 2.2669 | F6: 2.2692 | G6: =(E6+F6)/2 -> 2.2681 | H6: =(G6*$AA$3)+(G7*$AA$2) -> 2.3595 | I6: - | J6: - | K6: 0.000%
C7: 2017-04-03 | D7: EUR | E7: 2.4192 | F7: 2.4217 | G7: 2.4205 | I7: -
B8: COURS DE REVAL | C8: 2017-04-03 | D8: USD | E8: 2.2682 | F8: 2.2705 | G8: 2.2694 | H8: =(G8*$AA$3)+(G9*$AA$2) -> 2.3599 | I8: =(G8-G6)/G6 -> 0.06% | L8: =G9/G8 -> 1.0665
C9: 2017-04-03 | D9: EUR | E9: 2.4190 | F9: 2.4215 | G9: 2.4203 | I9: -0.01%
B10: COURS DE REF | C10: 2017-04-04 | D10: USD | E10: 2.2690 | F10: 2.2713 | G10: 2.2702 | H10: =(G10*$AA$3)+(G11*$AA$2) -> 2.3595 | I10: 0.04% | J10: =(H12-H8)/H8 -> -0.019% | K10: =K6+J10 -> -0.019%
C11: 2017-04-04 | D11: EUR | E11: 2.4178 | F11: 2.4203 | G11: 2.4191 | I11: -0.05%
B12: COURS DE REVAL | C12: 2017-04-04 | D12: USD | E12: 2.2699 | F12: 2.2721 | G12: 2.2710 | H12: =(G12*$AA$3)+(G13*$AA$2) -> 2.3594 | I12: 0.04% | L12: =G13/G12 -> 1.0649
C13: 2017-04-04 | D13: EUR | E13: 2.4172 | F13: 2.4196 | G13: 2.4184 | I13: -0.03%
B14: COURS DE REF | C14: 2017-04-05 | D14: USD | E14: 2.2694 | F14: 2.2716 | G14: 2.2705 | H14: =(G14*$AA$3)+(G15*$AA$2) -> 2.3635 | I14: -0.02% | J14: =(H16-H12)/H12 -> 0.177% | K14: =K10+J14 -> 0.158%
C15: 2017-04-05 | D15: EUR | E15: 2.4243 | F15: 2.4267 | G15: 2.4255 | I15: 0.29%
B16: COURS DE REVAL | C16: 2017-04-05 | D16: USD | E16: 2.2737 | F16: 2.2737 | G16: 2.2737 | H16: =(G16*$AA$3)+(G17*$AA$2) -> 2.3636 | I16: 0.14% | L16: =G17/G16 -> 1.0660
C17: 2017-04-05 | D17: EUR | E17: 2.4236 | F17: 2.4236 | G17: 2.4236 | I17: -0.08%
B18: COURS DE REF | C18: 2017-04-06 | D18: USD | E18: 2.2774 | F18: 2.2796 | G18: 2.2785 | H18: =(G18*$AA$3)+(G19*$AA$2) -> 2.3662 | I18: 0.21% | J18: =(H20-H16)/H16 -> 0.140% | K18: =K14+J18 -> 0.298%
C19: 2017-04-06 | D19: EUR | E19: 2.4235 | F19: 2.4259 | G19: 2.4247 | I19: 0.05%
B20: COURS DE REVAL | C20: 2017-04-06 | D20: USD | E20: 2.2764 | F20: 2.2786 | G20: 2.2775 | H20: =(G20*$AA$3)+(G21*$AA$2) -> 2.3669 | I20: -0.04% | L20: =G21/G20 -> 1.0654
C21: 2017-04-06 | D21: EUR | E21: 2.4253 | F21: 2.4278 | G21: 2.4266 | I21: 0.08%
B22: COURS DE REF | C22: 2017-04-07 | D22: USD | E22: 2.2805 | F22: 2.2827 | G22: 2.2816 | H22: =(G22*$AA$3)+(G23*$AA$2) -> 2.3688 | I22: 0.18% | J22: =(H24-H20)/H20 -> 0.109% | K22: =K18+J22 -> 0.407%
C23: 2017-04-07 | D23: EUR | E23: 2.4256 | F23: 2.4281 | G23: 2.4269 | I23: 0.01%
B24: COURS DE REVAL | C24: 2017-04-07 | D24: USD | E24: 2.2821 | F24: 2.2843 | G24: 2.2832 | H24: =(G24*$AA$3)+(G25*$AA$2) -> 2.3695 | I24: 0.07% | L24: =G25/G24 -> 1.0630
C25: 2017-04-07 | D25: EUR | E25: 2.4258 | F25: 2.4283 | G25: 2.4271 | I25: 0.01%
T481: =#REF!/#REF! ->  | U481: =#REF!/#REF! -> 
T482: 1.0641 | U482: =(T482/U481)-1 ->  | V482: variation relative | W482: =U482 -> 
T483: =T482-T481 ->  | U483: =U482*0.3 -> 
T484: =T483*0.7 ->  | U484: =1+U483 -> 
T485: =#REF!+T484 ->  | U485: =#REF!*U484 -> 
